bitfinex/quotes_BTCUSD_20230405
["timestamp","ask_amount","ask_price","bid_price","bid_amount"]
[1680706304842,0.4075816,28129.0,28126.0,0.2679369]
[1680706305052,0.4075816,28129.0,28126.0,0.2499369]
[1680706305256,0.4075816,28129.0,28126.0,0.2679369]
[1680706305684,0.4075816,28129.0,28126.0,0.01812]
[1680706305886,0.035047,28128.0,28126.0,0.018]
[1680706306466,0.035047,28128.0,28125.0,0.16857605]
[1680706306672,0.035047,28128.0,28125.0,0.16875605]
[1680706307200,0.38957425,28128.0,28125.0,0.16875605]
[1680706307348,0.35452725,28128.0,28125.0,0.16875605]
[1680706307768,0.034856,28127.0,28125.0,0.16875605]
[1680706307968,0.00013967,28129.0,28126.0,0.32763974]
[1680706308174,0.46694617,28132.0,28126.0,0.30963974]
[1680706308175,0.42949721,28131.0,28126.0,0.30963974]
[1680706308383,0.42963688,28131.0,28126.0,0.30963974]
[1680706309658,0.42963688,28131.0,28126.0,0.32763974]
[1680706310906,0.42963688,28131.0,28126.0,0.018]
[1680706310907,0.0843,28129.0,28126.0,0.018]
[1680706311119,0.0843,28127.0,28126.0,0.018]
[1680706311322,0.51213656,28127.0,28126.0,0.018]
[1680706311523,0.51227623,28127.0,28126.0,0.018]
[1680706311756,0.42797623,28127.0,28126.0,0.018]
[1680706311960,0.033051,28126.0,28123.0,0.20397277]
[1680706312136,0.045495,28126.0,28123.0,0.20397277]
[1680706312332,0.033389,28125.0,28123.0,0.20397277]
[1680706312534,0.03573,28124.0,28123.0,0.20397277]
[1680706314371,0.03673,28124.0,28123.0,0.20397277]
[1680706314551,0.001,28124.0,28123.0,0.20397277]
[1680706314968,0.35571056,28124.0,28122.0,0.00018]
[1680706315182,0.120292,28123.0,28120.0,0.00018]
[1680706315388,0.69664796,28124.0,28120.0,0.43446734]
[1680706315389,0.036004,28122.0,28120.0,0.43446734]
[1680706315598,0.036394,28123.0,28120.0,0.34951497]
[1680706315856,0.120694,28123.0,28120.0,0.34951497]
[1680706316086,0.034298,28122.0,28120.0,0.43446734]
[1680706317252,0.034298,28122.0,28120.0,0.01218]
[1680706317494,0.6649225,28121.0,28118.0,0.00018]
[1680706317692,0.1686,28119.0,28117.0,0.0009912]
[1680706317915,0.83487437,28118.0,28117.0,0.0009912]
[1680706318126,0.83487437,28118.0,28115.0,0.028433]
[1680706318327,0.035021,28117.0,28115.0,0.028433]
[1680706318583,0.61024756,28116.0,28115.0,0.028433]
[1680706318749,0.96334456,28116.0,28115.0,0.028433]
[1680706319296,1.10156298,28116.0,28115.0,0.028433]
[1680706319808,1.20156298,28116.0,28115.0,0.028433]
[1680706320025,0.88126298,28116.0,28115.0,0.028433]
[1680706320542,1.2328597,28116.0,28115.0,0.028433]
[1680706321091,0.90826298,28116.0,28115.0,0.028433]
[1680706321292,1.35334698,28116.0,28115.0,0.028433]
[1680706321673,1.58365009,28116.0,28115.0,0.028433]
[1680706321885,1.95866976,28116.0,28115.0,0.028433]
[1680706322808,0.97027523,28116.0,28115.0,0.028433]
[1680706323015,0.94327523,28116.0,28115.0,0.028433]
[1680706323434,0.97027523,28116.0,28115.0,0.028433]
[1680706323644,0.94327523,28116.0,28115.0,0.028433]
[1680706323863,0.97027523,28116.0,28115.0,0.028433]
[1680706324084,0.9704149,28116.0,28115.0,0.028433]
[1680706324294,0.05983667,28116.0,28115.0,0.13380366]
[1680706324504,0.059697,28116.0,28115.0,0.13380366]
[1680706325600,0.027,28116.0,28115.0,0.43444145]
[1680706325814,0.3289726,28121.0,28115.0,0.43444145]
[1680706326027,0.00013967,28123.0,28116.0,0.43901056]
[1680706326227,0.00013967,28126.0,28119.0,0.0842]
[1680706326473,0.38672598,28127.0,28120.0,0.38667556]
[1680706326678,0.38672598,28127.0,28120.0,0.36321056]
[1680706326679,0.4211612,28126.0,28120.0,0.36321056]
[1680706326894,0.003,28123.0,28120.0,0.36321056]
[1680706327106,0.003,28123.0,28121.0,0.02346]
[1680706327315,0.00013967,28125.0,28121.0,0.02346]
[1680706327316,0.41434824,28125.0,28121.0,0.02346]
[1680706327527,0.41420857,28125.0,28120.0,0.003]
[1680706327769,0.41420857,28125.0,28120.0,0.35471056]
[1680706327984,0.41420857,28125.0,28120.0,0.35489056]
[1680706328191,0.00013967,28126.0,28120.0,0.35489056]
[1680706328415,0.012443,28127.0,28120.0,0.35471056]
[1680706328623,0.32916926,28126.0,28121.0,0.40114448]
[1680706328840,0.002,28123.0,28121.0,0.40432448]
[1680706329080,0.32916926,28126.0,28122.0,0.024404]
[1680706329289,0.32916926,28126.0,28121.0,0.40132448]
[1680706329290,0.33216926,28126.0,28121.0,0.40132448]
[1680706329499,0.3933793,28125.0,28121.0,0.40132448]
[1680706329707,0.033797,28124.0,28121.0,0.40432448]
[1680706329910,0.046242,28124.0,28121.0,0.40132448]
[1680706330117,0.4058233,28125.0,28121.0,0.40432448]
[1680706330305,0.034217,28124.0,28121.0,0.40432448]
[1680706330573,0.012445,28124.0,28121.0,0.40132448]
[1680706330782,0.001,28124.0,28122.0,0.10771484]
[1680706331003,0.037972,28124.0,28122.0,0.10771484]
[1680706331212,0.001,28124.0,28122.0,0.10771484]
[1680706331616,0.37101641,28126.0,28122.0,0.10771484]
[1680706331860,0.037272,28125.0,28122.0,0.10771484]
[1680706332078,0.012444,28124.0,28122.0,0.10771484]
[1680706332303,0.034611,28123.0,28122.0,0.10971484]
[1680706332511,0.047056,28123.0,28122.0,0.10771484]
[1680706332719,0.012445,28123.0,28122.0,0.10771484]
[1680706332952,0.012445,28123.0,28122.0,0.11071484]
[1680706333166,0.012445,28123.0,28122.0,0.10771484]
[1680706333374,0.014445,28123.0,28122.0,0.11071484]
[1680706333585,0.012445,28123.0,28122.0,0.10771484]
[1680706334242,0.048632,28123.0,28122.0,0.10771484]
[1680706334659,0.049632,28123.0,28122.0,0.11071484]
[1680706334880,0.048632,28123.0,28122.0,0.10771484]
[1680706335095,0.012445,28123.0,28122.0,0.10771484]
[1680706335555,0.002,28123.0,28122.0,0.003]
[1680706335985,0.002,28123.0,28122.0,0.40914184]
[1680706336212,0.3254733,28128.0,28122.0,0.42967184]
[1680706336418,0.001,28123.0,28122.0,0.38753473]
[1680706336622,0.001,28123.0,28122.0,0.41222573]
[1680706337457,0.32533363,28128.0,28122.0,0.76393629]
[1680706337701,0.002,28123.0,28122.0,0.38759473]
[1680706337908,0.35043826,28127.0,28122.0,0.40837073]
[1680706338181,0.003,28123.0,28122.0,0.38759473]
[1680706338392,0.45713463,28123.0,28122.0,0.00018]
[1680706338599,0.45713463,28123.0,28117.0,0.4167]
[1680706338600,0.49276363,28123.0,28120.0,0.00740452]
[1680706338815,0.45713463,28123.0,28122.0,0.003]
[1680706339020,0.49259363,28123.0,28122.0,0.003]
[1680706339450,0.49259363,28123.0,28120.0,0.00728452]
[1680706339657,0.034639,28122.0,28120.0,0.00728452]
[1680706340953,0.03456857,28122.0,28118.0,0.00012]
[1680706341162,0.41037384,28121.0,28118.0,0.33252915]
[1680706341379,0.41037384,28121.0,28120.0,0.002]
[1680706341590,0.44640884,28121.0,28120.0,0.002]
[1680706342039,0.44640884,28121.0,28119.0,0.15141845]
[1680706342247,0.035321,28120.0,28119.0,0.15141845]
[1680706343535,0.034067,28122.0,28119.0,0.15123845]
[1680706344361,0.001,28120.0,28119.0,0.15423845]
[1680706344787,0.034067,28122.0,28119.0,0.15123845]
[1680706344991,0.035067,28122.0,28119.0,0.15423845]
[1680706345375,0.034067,28122.0,28119.0,0.15123845]
[1680706345578,0.001,28120.0,28119.0,0.15423845]
[1680706346009,0.001,28120.0,28119.0,0.003]
[1680706346439,0.001,28120.0,28119.0,0.34259841]
[1680706346647,0.41154209,28125.0,28119.0,0.00012]
[1680706346856,0.001,28122.0,28119.0,0.35771056]
[1680706347078,0.001,28122.0,28119.0,0.44278293]
[1680706347286,0.001,28122.0,28120.0,0.37676956]
[1680706347495,0.00013967,28128.0,28121.0,1.22856566]
[1680706347724,0.53957973,28133.0,28127.0,0.0843]
[1680706347936,0.10013967,28133.0,28129.0,0.0843]
[1680706348147,0.10013967,28133.0,28130.0,0.35471056]
[1680706349232,0.10013967,28133.0,28130.0,0.69056623]
[1680706349448,0.10313967,28133.0,28131.0,0.1567944]
[1680706349662,0.10313967,28133.0,28131.0,0.51150496]
[1680706350073,0.10013967,28133.0,28131.0,0.51150496]
[1680706350284,0.10313967,28133.0,28131.0,0.51150496]
[1680706351114,0.10013967,28133.0,28131.0,0.51150496]
[1680706351327,0.10213967,28133.0,28131.0,0.51450496]
[1680706351550,0.10213967,28133.0,28132.0,0.29251024]
[1680706352385,0.10213967,28133.0,28131.0,0.003]
[1680706352593,0.40518682,28132.0,28131.0,0.003]
[1680706353001,0.40518682,28132.0,28127.0,0.33545]
[1680706353211,0.54708363,28132.0,28129.0,0.31488783]
[1680706353420,0.40532649,28132.0,28131.0,0.003]
[1680706353662,0.43994349,28132.0,28131.0,0.003]
[1680706354106,0.43994349,28132.0,28129.0,0.31488783]
[1680706354312,0.40732649,28132.0,28131.0,0.003]
[1680706354516,0.44189149,28132.0,28129.0,0.31488783]
[1680706354752,0.40732649,28132.0,28131.0,0.003]
[1680706354956,0.44314749,28132.0,28131.0,0.003]
[1680706355375,0.44114749,28132.0,28129.0,0.31488783]
[1680706355580,0.035222,28131.0,28129.0,0.31488783]
[1680706355786,0.40532649,28132.0,28129.0,0.31488783]
[1680706355987,0.035416,28131.0,28129.0,0.31488783]
[1680706356814,0.40732649,28132.0,28129.0,0.31488783]
[1680706357016,0.40532649,28132.0,28129.0,0.31488783]
[1680706357223,0.40732649,28132.0,28129.0,0.31788783]
[1680706357434,0.4476994,28131.0,28129.0,0.31488783]
[1680706357640,0.4476994,28131.0,28129.0,0.00312]
[1680706357851,0.41630238,28130.0,28129.0,0.003]
[1680706358065,0.41630238,28130.0,28127.0,0.67983711]
[1680706358285,0.57064119,28130.0,28129.0,0.003]
[1680706358527,0.45201638,28130.0,28129.0,0.003]
[1680706358708,0.45201638,28130.0,28128.0,0.00018]
[1680706358918,0.034584,28129.0,28126.0,0.16371607]
[1680706359129,0.034584,28129.0,28124.0,0.30116388]
[1680706359130,0.44142863,28128.0,28124.0,0.55735579]
[1680706359341,0.58346511,28128.0,28125.0,0.10268118]
[1680706359546,0.4415683,28128.0,28125.0,0.10268118]
[1680706360409,0.00013967,28128.0,28126.0,0.1]
[1680706360625,0.003,28128.0,28127.0,0.023845]
[1680706360837,0.00013967,28130.0,28127.0,0.023845]
[1680706361103,0.002,28128.0,28126.0,0.35471056]
[1680706361752,0.002,28128.0,28127.0,0.023079]
[1680706361963,0.002,28128.0,28127.0,0.28147272]
[1680706362173,0.002,28128.0,28127.0,0.25839372]
[1680706362394,0.00013967,28130.0,28127.0,0.25839372]
[1680706362607,0.001,28128.0,28127.0,0.25839372]
[1680706362815,0.001,28128.0,28127.0,0.28245172]
[1680706363051,0.001,28128.0,28127.0,0.25839372]
[1680706363270,0.001,28128.0,28127.0,0.28168772]
[1680706363712,0.001,28128.0,28126.0,0.35471056]
[1680706363926,0.001,28128.0,28127.0,0.58773548]
[1680706364377,0.001,28128.0,28127.0,0.37968156]
[1680706364823,0.001,28128.0,28127.0,0.62907776]
[1680706365057,0.001,28128.0,28127.0,0.37968156]
[1680706365898,0.001,28128.0,28127.0,0.47238156]
[1680706368948,0.001,28128.0,28127.0,0.73202254]
[1680706369135,0.001,28128.0,28127.0,0.47238156]
[1680706370210,0.001,28128.0,28127.0,0.57238156]
[1680706370320,0.001,28128.0,28127.0,0.82794019]
[1680706370548,0.001,28128.0,28127.0,0.81035019]
[1680706371586,0.001,28128.0,28127.0,0.57238156]
[1680706372201,0.001,28128.0,28127.0,0.7975312]
[1680706372815,0.001,28128.0,28127.0,0.57238156]
[1680706373019,0.001,28128.0,28127.0,0.84227992]
[1680706373432,0.001,28128.0,28127.0,0.57238156]
[1680706374177,0.001,28128.0,28127.0,0.80268672]
[1680706375402,0.001,28128.0,28127.0,0.87238156]
[1680706376700,0.001,28128.0,28127.0,0.87226207]
[1680706376914,0.001,28128.0,28127.0,1.11805386]
[1680706377759,0.001,28128.0,28127.0,0.87226207]
[1680706377974,0.00013967,28132.0,28128.0,0.1]
[1680706378193,0.00013967,28132.0,28129.0,0.37800456]
[1680706378404,0.00013967,28132.0,28129.0,0.35471056]
[1680706379239,0.00313967,28132.0,28129.0,0.35471056]
[1680706379451,0.36881365,28131.0,28128.0,0.009]
[1680706379664,0.36895332,28131.0,28128.0,0.36371056]
[1680706379878,0.36895332,28131.0,28128.0,0.52029393]
[1680706380090,0.45903915,28130.0,28127.0,0.3]
[1680706380303,0.60107563,28130.0,28126.0,0.51226935]
[1680706380544,0.60107563,28130.0,28126.0,0.51208935]
[1680706380751,0.60107563,28130.0,28126.0,0.51110934]
[1680706380965,0.45917882,28130.0,28127.0,0.14373247]
[1680706381177,0.45917882,28130.0,28129.0,0.008]
[1680706381389,0.45917882,28130.0,28127.0,0.14373247]
[1680706381390,0.49445082,28130.0,28127.0,0.14373247]
[1680706381606,0.45917882,28130.0,28127.0,0.14373247]
[1680706381809,0.46217882,28130.0,28127.0,0.14373247]
[1680706382017,0.45917882,28130.0,28127.0,0.14373247]
[1680706382237,0.46017882,28130.0,28129.0,0.008]
[1680706382438,0.45917882,28130.0,28127.0,0.14373247]
[1680706382645,0.45917882,28130.0,28127.0,0.15173247]
[1680706382879,0.00313967,28130.0,28128.0,0.18585772]
[1680706383096,0.00013967,28132.0,28129.0,0.16918649]
[1680706383304,0.001,28130.0,28129.0,0.36271056]
[1680706383520,0.001,28130.0,28129.0,0.60508398]
[1680706384180,0.00013967,28132.0,28129.0,0.59708398]
[1680706384401,0.001,28130.0,28129.0,0.57194098]
[1680706384617,0.00013967,28132.0,28129.0,0.59617298]
[1680706384825,0.00013967,28132.0,28130.0,0.022907]
[1680706385031,0.00013967,28132.0,28131.0,0.48475887]
[1680706385242,0.00013967,28132.0,28131.0,0.50798087]
[1680706386112,0.00113967,28132.0,28131.0,0.50798087]
[1680706387436,0.00013967,28132.0,28131.0,0.50798087]
[1680706387636,0.00113967,28132.0,28131.0,0.52698087]
[1680706388683,0.00106,28132.0,28131.0,0.42698087]
[1680706388856,0.001,28132.0,28131.0,0.46225324]
[1680706389975,0.001,28132.0,28131.0,0.042222]
[1680706390190,0.001,28132.0,28131.0,0.019]
[1680706391023,0.001,28132.0,28131.0,0.119]
[1680706391234,0.001,28132.0,28131.0,0.019]
[1680706392506,0.001,28132.0,28131.0,0.23140795]
[1680706392728,0.001,28132.0,28131.0,0.25547895]
[1680706392974,0.001,28132.0,28131.0,0.12803418]
[1680706393171,0.001,28132.0,28131.0,0.35995639]
[1680706393371,0.001,28132.0,28131.0,0.33588539]
[1680706395140,0.001,28132.0,28131.0,0.27427221]
[1680706395796,0.001,28132.0,28131.0,0.25092221]
[1680706397276,0.001,28132.0,28131.0,0.27458621]
[1680706397725,0.001,28132.0,28131.0,0.10413303]
[1680706397937,0.001,28132.0,28131.0,0.14644477]
[1680706398173,0.001,28132.0,28131.0,0.23157618]
[1680706398394,0.001,28132.0,28131.0,0.10413141]
[1680706398844,0.001,28132.0,28131.0,0.14644477]
[1680706399439,0.001,28132.0,28131.0,0.34731163]
[1680706399725,0.001,28132.0,28131.0,0.72522619]
[1680706399936,0.001,28132.0,28131.0,0.87975252]
[1680706400154,0.08717316,28134.0,28132.0,0.1]
[1680706400374,0.08717316,28134.0,28133.0,0.68457168]
[1680706400558,0.08717316,28134.0,28133.0,1.12610856]
[1680706401232,0.08717316,28134.0,28133.0,1.12628856]
[1680706401672,0.08717316,28134.0,28133.0,1.16173856]
[1680706402516,0.08717316,28134.0,28133.0,1.19658119]
[1680706402729,0.08717316,28134.0,28133.0,1.22458119]
[1680706402945,0.08717316,28134.0,28133.0,1.43720573]
[1680706403157,0.08717316,28134.0,28133.0,1.22458119]
[1680706403377,0.07867316,28134.0,28133.0,1.22440119]
[1680706403584,0.07867316,28134.0,28133.0,1.32440119]
[1680706405172,0.07867316,28134.0,28133.0,1.29640119]
[1680706405382,0.07867316,28134.0,28133.0,1.32440119]
[1680706405594,0.07867316,28134.0,28133.0,1.29640119]
[1680706405810,0.07867316,28134.0,28133.0,1.64849553]
[1680706406031,0.07867316,28134.0,28133.0,1.64011553]
[1680706406244,0.07867316,28134.0,28133.0,0.80438221]
[1680706406431,0.07867316,28134.0,28133.0,0.93194487]
[1680706406675,0.07867316,28134.0,28133.0,0.93176487]
[1680706406899,0.07867316,28134.0,28133.0,0.90742687]
[1680706407113,0.07867316,28134.0,28133.0,0.93177787]
[1680706407525,0.07867316,28134.0,28133.0,0.80421521]
[1680706407937,0.07867316,28134.0,28133.0,0.77621521]
[1680706408150,0.07867316,28134.0,28133.0,0.77980421]
[1680706408354,0.07867316,28134.0,28133.0,0.96446892]
[1680706408564,0.07867316,28134.0,28133.0,0.77980421]
[1680706408995,0.07867316,28134.0,28133.0,0.90735278]
[1680706409216,0.07867316,28134.0,28133.0,0.77980421]
[1680706409432,0.07867316,28134.0,28133.0,0.93064449]
[1680706409665,0.07867316,28134.0,28133.0,0.93064453]
[1680706410619,0.07867316,28134.0,28133.0,0.90736147]
[1680706411039,0.07867316,28134.0,28133.0,0.73727952]
[1680706411637,0.07867316,28134.0,28133.0,0.49100726]
[1680706411914,0.43486278,28134.0,28133.0,0.11304376]
[1680706412739,0.43500245,28134.0,28133.0,0.11304376]
[1680706412955,0.07881283,28134.0,28133.0,0.11304376]
[1680706413161,0.07867316,28134.0,28133.0,0.11304376]
[1680706413569,0.07867316,28134.0,28133.0,0.08504376]
[1680706413769,0.07867316,28134.0,28133.0,0.11304376]
[1680706413984,0.07867316,28134.0,28133.0,0.08504376]
[1680706414197,0.07867316,28134.0,28133.0,0.10304376]
[1680706418166,0.07867316,28134.0,28133.0,0.33324093]
[1680706420182,0.07867316,28134.0,28133.0,0.018]
[1680706420392,0.53720259,28134.0,28133.0,0.018]
[1680706420562,0.53734226,28134.0,28133.0,0.018]
[1680706421191,0.53734226,28134.0,28132.0,0.08504376]
[1680706421391,0.119109,28133.0,28132.0,0.08504376]
[1680706421568,0.11924867,28133.0,28131.0,0.21260102]
[1680706421772,0.119173,28132.0,28131.0,0.21260102]
[1680706421967,0.119173,28132.0,28131.0,0.08504376]
[1680706422641,0.11925267,28132.0,28131.0,0.08504376]
[1680706422858,0.11931267,28132.0,28131.0,0.08504376]
[1680706423059,0.08403967,28132.0,28131.0,0.08504376]
[1680706423188,0.0839,28132.0,28131.0,0.09604376]
[1680706423599,0.0839,28132.0,28131.0,0.011]
[1680706424107,0.47568547,28132.0,28131.0,0.011]
[1680706424493,0.08403967,28132.0,28131.0,0.09604376]
[1680706424835,0.0839,28132.0,28131.0,0.09604376]
[1680706425042,0.08403967,28132.0,28131.0,0.09604376]
[1680706425433,0.00013967,28132.0,28131.0,0.09604376]
[1680706426386,0.00013967,28132.0,28131.0,0.22360102]
[1680706426589,0.00013967,28132.0,28131.0,0.13855726]
[1680706426991,0.00013967,28132.0,28131.0,0.22366672]
[1680706428054,0.49225478,28133.0,28131.0,0.13855726]
[1680706428197,0.49225478,28133.0,28132.0,0.08510821]
[1680706428392,0.4923806,28133.0,28132.0,0.08510821]
[1680706428600,0.5279116,28133.0,28132.0,0.08510821]
[1680706428806,0.4923806,28133.0,28132.0,0.08510821]
[1680706430050,0.4923806,28133.0,28132.0,0.08910821]
[1680706430475,0.5261916,28133.0,28132.0,0.08910821]
[1680706431335,0.4419916,28133.0,28132.0,0.08910821]
[1680706431526,0.4081806,28133.0,28132.0,0.08910821]
[1680706432832,0.4430546,28133.0,28132.0,0.08910821]
[1680706434107,0.4081806,28133.0,28132.0,0.08910821]
[1680706434872,0.4081806,28133.0,28132.0,0.004]
[1680706435106,0.40805478,28133.0,28132.0,0.08910821]
[1680706435317,0.4081806,28133.0,28132.0,0.08910821]
[1680706435562,0.4432886,28133.0,28132.0,0.08910821]
[1680706435939,0.4081806,28133.0,28132.0,0.08910821]
[1680706440228,0.00012582,28133.0,28132.0,0.08910821]
[1680706440423,0.49229036,28134.0,28132.0,0.08910821]
[1680706440632,0.036381,28133.0,28132.0,0.08910821]
[1680706440829,0.035267,28133.0,28132.0,0.08910821]
[1680706441094,0.40841618,28134.0,28132.0,0.08910821]
[1680706441284,0.034333,28133.0,28132.0,0.08910821]
[1680706441489,0.40841618,28134.0,28132.0,0.08910821]
[1680706441630,0.40841618,28134.0,28132.0,0.08510821]
[1680706441834,0.40841618,28134.0,28132.0,0.08910821]
[1680706442226,0.40841618,28134.0,28132.0,0.08510821]
[1680706442485,0.40841618,28134.0,28132.0,0.08910821]
[1680706442655,0.035288,28133.0,28132.0,0.08510821]
[1680706442857,0.40841618,28134.0,28132.0,0.08900212]
[1680706443294,0.40841618,28134.0,28132.0,0.08787331]
[1680706443504,0.07879898,28134.0,28132.0,0.21314058]
[1680706443743,0.07867316,28134.0,28133.0,0.2645014]
[1680706443926,0.07867316,28134.0,28133.0,0.2409044]
[1680706444135,0.07867316,28134.0,28133.0,0.76065822]
[1680706444353,0.07867316,28134.0,28133.0,0.63867688]
[1680706445023,0.07967316,28134.0,28133.0,0.73867688]
[1680706445248,0.07867316,28134.0,28133.0,0.73867688]
[1680706445470,0.07867316,28134.0,28133.0,0.76267688]
[1680706445892,0.07867316,28134.0,28133.0,0.95142782]
[1680706446090,0.07867316,28134.0,28133.0,0.97542782]
[1680706446544,0.07867316,28134.0,28133.0,0.97560782]
[1680706447793,0.07867316,28134.0,28133.0,1.01078151]
[1680706449039,0.07867316,28134.0,28133.0,1.31078151]
[1680706449450,0.07867316,28134.0,28133.0,1.09803057]
[1680706449666,0.07867316,28134.0,28133.0,1.31080787]
[1680706451212,0.07867316,28134.0,28133.0,1.28680787]
[1680706451435,0.07867316,28134.0,28133.0,1.31480787]
[1680706451640,0.07867316,28134.0,28133.0,1.28680787]
[1680706451855,0.06967316,28134.0,28133.0,1.21062787]
[1680706452070,0.06967316,28134.0,28133.0,0.99785057]
[1680706452541,0.06967316,28134.0,28133.0,0.97464957]
[1680706452747,0.06967316,28134.0,28133.0,1.21191418]
[1680706453164,0.06967316,28134.0,28133.0,1.21201622]
[1680706453510,0.06967316,28134.0,28133.0,1.00324957]
[1680706453714,0.06967316,28134.0,28133.0,1.00312957]
[1680706453929,0.06967316,28134.0,28133.0,0.97512957]
[1680706454135,0.06967316,28134.0,28133.0,0.99912957]
[1680706456577,0.43198137,28134.0,28133.0,0.74213577]
[1680706456780,0.43210719,28134.0,28133.0,0.49420918]
[1680706457191,0.43210719,28134.0,28133.0,0.62187021]
[1680706457858,0.43198137,28134.0,28133.0,0.62205021]
[1680706458253,0.43198137,28134.0,28133.0,0.45184103]
[1680706458821,0.43198137,28134.0,28133.0,0.10928655]
[1680706459037,0.43198137,28134.0,28133.0,0.23676758]
[1680706459238,0.43198137,28134.0,28133.0,0.23689188]
[1680706460245,0.06967316,28134.0,28133.0,0.12766103]
[1680706460469,0.10380116,28134.0,28133.0,0.14566103]
[1680706460661,0.10392698,28134.0,28133.0,0.14566103]
[1680706460857,0.06979898,28134.0,28133.0,0.14566103]
[1680706461067,0.06967316,28134.0,28133.0,0.14566103]
[1680706461194,0.06967316,28134.0,28133.0,0.2307672]
[1680706461395,0.06957096,28134.0,28133.0,0.2308872]
[1680706462482,0.10467196,28134.0,28133.0,0.2308872]
[1680706463279,0.06957096,28134.0,28133.0,0.2308872]
[1680706463482,0.10287696,28134.0,28133.0,0.10322617]
[1680706463711,0.06957096,28134.0,28133.0,0.10310617]
[1680706464241,0.06957096,28134.0,28133.0,0.14566103]
[1680706464448,0.06957096,28134.0,28133.0,0.23076846]
[1680706464650,0.06957096,28134.0,28133.0,0.23088846]
[1680706464860,0.06957096,28134.0,28133.0,0.14578103]
[1680706465058,0.06957096,28134.0,28133.0,0.23076853]
[1680706465269,0.06957096,28134.0,28133.0,0.23088853]
[1680706465920,0.06957096,28134.0,28133.0,0.3810924]
[1680706466132,0.06957096,28134.0,28133.0,0.3809724]
[1680706466563,0.06957096,28134.0,28133.0,0.5937253]
[1680706466771,0.06957096,28134.0,28133.0,0.48151856]
[1680706466975,0.06337097,28134.0,28133.0,0.54682553]
[1680706467204,0.02376001,28137.0,28134.0,0.1]
[1680706467438,0.02376001,28137.0,28136.0,0.29725]
[1680706467640,0.02376001,28137.0,28136.0,0.98530656]
[1680706467856,0.02376001,28137.0,28136.0,1.08530656]
[1680706468064,0.02376001,28137.0,28136.0,1.49087817]
[1680706468306,0.02376001,28137.0,28136.0,1.34610656]
[1680706469235,0.02376001,28137.0,28136.0,1.37410656]
[1680706469444,0.02376001,28137.0,28136.0,1.34610656]
[1680706469856,0.02376001,28137.0,28136.0,1.64654053]
[1680706470061,0.02376001,28137.0,28136.0,1.37410656]
[1680706470493,0.02376001,28137.0,28136.0,1.60888481]
[1680706470706,0.02376001,28137.0,28136.0,1.52478481]
[1680706470917,0.02376001,28137.0,28136.0,1.42478481]
[1680706471140,0.02376001,28137.0,28136.0,0.62307425]
[1680706471345,0.02376001,28137.0,28136.0,0.83556477]
[1680706471980,0.02376001,28137.0,28136.0,0.80756477]
[1680706472393,0.02376001,28137.0,28136.0,1.16227533]
[1680706472811,0.02376001,28137.0,28136.0,1.19027533]
[1680706473057,0.02376001,28137.0,28136.0,1.19877533]
[1680706474309,0.02376001,28137.0,28136.0,0.96399708]
[1680706474513,0.02376001,28137.0,28136.0,1.06392843]
[1680706474726,0.02376001,28137.0,28136.0,1.30471473]
[1680706475842,0.02376001,28137.0,28136.0,1.20471473]
[1680706476259,0.02366001,28137.0,28136.0,1.20489473]
[1680706476466,0.02366001,28137.0,28136.0,1.20471473]
[1680706476672,0.02366001,28137.0,28136.0,1.20483473]
[1680706476886,0.02366001,28137.0,28136.0,1.20471473]
[1680706477506,0.02366001,28137.0,28136.0,1.37462673]
[1680706478016,0.02366001,28137.0,28136.0,1.20471473]
[1680706478227,0.02366001,28137.0,28136.0,0.96392843]
[1680706478442,0.02366001,28137.0,28136.0,1.18093423]
[1680706481388,0.02366001,28137.0,28136.0,1.15608823]
[1680706481597,0.02366001,28137.0,28136.0,1.17998023]
[1680706481799,0.02366001,28137.0,28136.0,1.15608823]
[1680706482005,0.02366001,28137.0,28136.0,1.03037694]
[1680706482299,0.02366001,28137.0,28136.0,1.13037694]
[1680706483853,0.02366001,28137.0,28136.0,1.48467694]
[1680706484070,0.02366001,28137.0,28136.0,1.33369423]
[1680706488816,0.3615036,28153.0,28152.0,0.00018]
[1680706489048,0.3615036,28153.0,28151.0,0.15786404]
[1680706489279,0.02376001,28154.0,28152.0,0.023049]
[1680706489498,0.39234236,28154.0,28152.0,0.023049]
[1680706489714,0.39234236,28154.0,28152.0,0.00018]
[1680706489947,0.39234236,28154.0,28151.0,0.43364804]
[1680706490367,0.39234236,28154.0,28152.0,0.16960985]
[1680706490576,0.39234236,28154.0,28152.0,0.17360985]
[1680706490787,0.39234236,28154.0,28152.0,0.16978985]
[1680706491639,0.02376001,28154.0,28152.0,0.16978985]
[1680706491848,0.02376001,28154.0,28152.0,0.16960985]
[1680706492050,0.02376001,28154.0,28153.0,0.20510945]
[1680706492261,0.02376001,28154.0,28153.0,0.18198145]
[1680706492879,0.02376001,28154.0,28153.0,0.53669201]
[1680706493085,0.02376001,28154.0,28153.0,0.56060901]
[1680706493290,0.02376001,28154.0,28153.0,0.56061701]
[1680706493496,0.02376001,28154.0,28153.0,0.38713556]
[1680706493497,0.02476001,28154.0,28153.0,0.38713556]
[1680706493704,0.01956001,28154.0,28153.0,0.77123556]
[1680706493912,0.01075995,28154.0,28153.0,0.77123556]
[1680706494338,0.01075995,28154.0,28153.0,0.77133556]
[1680706494809,0.01075995,28154.0,28153.0,0.9061561]
[1680706495019,0.01075995,28154.0,28153.0,0.9063361]
[1680706495225,0.01075995,28154.0,28153.0,0.68731556]
[1680706495435,0.01075995,28154.0,28153.0,0.88805149]
[1680706495912,0.11075995,28154.0,28153.0,0.88805149]
[1680706496124,0.11075995,28154.0,28153.0,0.87973149]
[1680706496332,0.11075995,28154.0,28153.0,0.67881556]
[1680706496542,0.11075995,28154.0,28153.0,0.88470183]
[1680706496771,0.11075995,28154.0,28153.0,0.67881556]
[1680706497644,0.11075995,28154.0,28153.0,0.77091556]
[1680706497864,0.11075995,28154.0,28153.0,0.77151556]
[1680706498931,0.11075995,28154.0,28153.0,0.80696556]
[1680706499361,0.10975995,28154.0,28153.0,0.80696556]
[1680706499579,0.10975995,28154.0,28153.0,0.83496556]
[1680706499808,0.10975995,28154.0,28153.0,0.80696556]
[1680706500041,0.10975995,28154.0,28153.0,0.83496556]
[1680706500259,0.10975995,28154.0,28153.0,0.80696556]
[1680706500473,0.10975995,28154.0,28153.0,0.76278556]
[1680706500682,0.10975995,28154.0,28153.0,0.67858556]
[1680706500931,0.10975995,28154.0,28153.0,0.77858556]
[1680706501142,0.10115995,28154.0,28153.0,0.77858556]
[1680706501567,0.10115995,28154.0,28153.0,0.67858556]
[1680706501997,0.10115995,28154.0,28153.0,0.89594476]
[1680706502433,0.10115995,28154.0,28153.0,0.67858556]